Cogmind - Beta 14 @@@ ROGUE MODE // 2024.09.26 @ 20:12:21 Player: Mein Result: Destroyed by exploding Fusion Modulator Performance ------------- Evolutions (0) 0 Regions Visited (1) 200 Robots Destroyed (21) 105 Value Destroyed (532) 532 Prototype IDs (0) 0 Alien Tech Used (0) 0 Bonus (0) 0 TOTAL SCORE: 837 Bonus ------- None Cogmind --------- Core Integrity 0/250 Matter 34/300 Energy 100/100 System Corruption 0% Temperature Cool (24) Movement Core (350) Ox6 Location -10/Materials Parts ------- > --- POWER (1) -------- (None) > --- PROPULSION (2) --- (None) > --- UTILITY (2) ------ Large Storage Unit > --- WEAPON (2) ------- (None) > --- INVENTORY (15) --- Improved Treads Improved Treads Cooling System High-capacity Storage Unit Signal Interpreter Seismic Detector Light Armor Plating Beam Cannon Light Assault Rifle Light Assault Rifle Light Cannon Mining Claw Peak State ------------ > --- POWER ------------ Light Ion Engine > --- PROPULSION ------- Improved Treads Improved Treads > --- UTILITY ---------- Cooling System Large Storage Unit > --- WEAPON ----------- Light Assault Rifle Light Assault Rifle > --- INVENTORY -------- Ion Engine Improved Treads Improved Treads Cooling System Seismic Detector Light Cannon Grenade Launcher [Rating: 11] Favorites ----------- Power Light Ion Engine Engine Light Ion Engine Propulsion Improved Treads Treads Improved Treads Wheel Wheel Utility Cooling System Device Cooling System Storage Large Storage Unit Weapon Light Assault Rifle Ballistic Gun Light Assault Rifle Launcher Grenade Launcher Build | -11 -10 ------- Run | Yrd Mat Slots Evolved . | . . Power . | . . Propulsion . | . . Utility . | . . Weapon . | . . Parts Attached 22 | 10 12 Power 3 | 2 1 Engine 3 | 2 1 Core . | . . Reactor . | . . Propulsion 6 | 4 2 Treads 2 | . 2 Leg . | . . Wheel 4 | 4 . Hover . | . . Flight . | . . Utility 5 | 2 3 Device 3 | 2 1 Storage 2 | . 2 Processor . | . . Hackware . | . . Protection . | . . Artifact . | . . Weapon 8 | 2 6 Energy Gun . | . . Energy Cannon . | . . Ballistic Gun 4 | 2 2 Ballistic Cannon . | . . Launcher 4 | . 4 Special Weapon . | . . Impact Weapon . | . . Slashing Weapon . | . . Piercing Weapon . | . . Special Melee Weapon . | . . Unidentified Prototypes . | . . Parts Lost 6 | . 6 Power 1 | . 1 Propulsion 2 | . 2 Utility 1 | . 1 Weapon 2 | . 2 Highest Loss Streak 3 | . 3 To Critical Strikes . | . . Average Slot Usage (%) 90 | . 90 Engine 10 | . 10 Treads 25 | . 25 Device 14 | . 14 Storage 13 | . 13 Ballistic Gun 20 | . 20 Launcher 4 | . 4 Peak Build Rating 11 | 7 11 Average Rating 9 | 4 9 On Entrance 3 | . 7 Naked Turns . | . . Heaviest Build 29 | 7 29 Greatest Support 46 | 20 46 Greatest Overweight (x) 7 | . 7 Average Overweight (x) . | . . Largest Inventory Capacity 15 | 5 15 Average Capacity 12 | 5 13 Most Carried 12 | 3 12 Average Carried 7 | . 7 Final Capacity 15 | 5 15 Final Carried 12 | . 12 Class Distribution -------------------- 100% | Mutant Dominant Class ---------------- Mutant | -10/Materials Resources | -11 -10 ----------- Run | Yrd Mat Matter Collected 414 | 282 132 Remotely . | . . Salvage Created 502 | 61 441 Parts 42 | 8 34 Haulers Intercepted . | . . Recyclers Shooed 3 | . 3 Parts Field Recycled . | . . Retrieved Matter . | . . Parts Self-Destructed . | . . Prevented . | . . Kills | -11 -10 ------- Run | Yrd Mat Combat Hostiles Destroyed 12 | 1 11 Guns 4 | 1 3 AOE 8 | . 8 Classes Destroyed 6 | 2 4 Worker 1 | . 1 Builder 2 | . 2 Tunneler 1 | 1 . Recycler 2 | . 2 Watcher 3 | . 3 Grunt 12 | 1 11 Best Kill Streak 10 | 2 10 Combat Bots Only 4 | 1 4 Max Kills in Single Turn 2 | 1 2 Gunslinging . | . . Exploded 2 | . 2 Melee . | . . Uniques/NPCs Destroyed . | . . Combat | -11 -10 -------- Run | Yrd Mat Hostile Shots Fired 104 | 8 96 Missed 31 | 1 30 Damage Taken 1099 | 81 1018 Core 273 | 24 249 Absorbed by Shields . | . . Core Remaining (%) 90 | 90 . Volleys Fired 38 | 6 32 Largest 2 | 2 2 Hottest 60 | 40 60 Shots Fired 74 | 12 62 Gun 50 | 12 38 Cannon . | . . Launcher 24 | . 24 Special . | . . Kinetic 50 | 12 38 Thermal . | . . Explosive 24 | . 24 Electromagnetic . | . . Robot Hit Streak 8 | 3 8 Robot Miss Streak 5 | 1 5 Penetration Max . | . . Secondary Targets 1 | . 1 Max Gunslinging Chain 1 | . 1 Shots Hit Robots 32 | 8 24 Core Hits 43 | 5 38 Critical Kills . | . . Critical Parts Destroyed . | . . Critical Strikes . | . . Melee Attacks . | . . Impact . | . . Slashing . | . . Piercing . | . . Sneak Attacks . | . . Combat Hostiles . | . . Follow-up Attacks . | . . Damage Inflicted 1315 | 88 1227 Guns 234 | 88 146 Cannons . | . . Explosions 1081 | . 1081 Melee . | . . Ramming . | . . Kinetic 234 | 88 146 Thermal . | . . Explosive 1081 | . 1081 Electromagnetic . | . . Impact . | . . Slashing . | . . Piercing . | . . Highest Corruption . | . . Average Corruption . | . . Corruption Purged . | . . Corruption Blocked . | . . Overload Shots . | . . Overflow Damage 3 | . 3 Projectiles . | . . Explosions 3 | . 3 Melee . | . . Knockbacks . | . . Impact . | . . Kinetic . | . . Secondary . | . . Self-Inflicted Damage 14 | . 14 Shots 1 | . 1 Rammed . | . . Targets Rammed . | . . Kicked . | . . Crushed . | . . Highest Temperature 6 | 6 . Average Temperature 6 | 6 . Received Heat Transfer 513 | 42 471 Siege Activations . | . . Robots Corrupted . | . . Combat Hostiles . | . . Parts Fried . | . . Impact Corruptions . | . . Robots Melted . | . . Combat Hostiles . | . . Parts Melted . | . . Heat Transferred . | . . Parts Sabotaged . | . . Parts Stolen . | . . Parts Stripped . | . . Power Chain Reactions . | . . Alert | -11 -10 ------- Run | Yrd Mat Peak Influence 356 | 25 356 Initial 16 | . 16 Average 92 | 9 101 Maximum Alert Level 1 | . 1 Low Security (%) 78 | 100 76 Level 1 21 | . 23 Level 2 . | . . Level 3 . | . . Level 4 . | . . Level 5 . | . . High Security . | . . Max Security . | . . Squads Dispatched 2 | . 2 Investigation 1 | . 1 Extermination . | . . Reinforcement 1 | . 1 Assault . | . . Garrison . | . . Intercept . | . . Searches Triggered . | . . Construction Impeded . | . . Haulers Reinforced . | . . Active Scanning Responses . | . . Cargo Convoy Interrupts . | . . Stealth | -11 -10 --------- Run | Yrd Mat Distress Signals . | . . Communications Jammed . | . . Distress Signals . | . . Times Spotted 20 | 1 19 Peak Tracking Total 5 | 1 5 Tactical Retreats . | . . Traps | -11 -10 ------- Run | Yrd Mat Traps Triggered 1 | . 1 Indirectly . | . . Trap Hack Attempts . | . . Triggered . | . . Disarmed . | . . Reprogrammed . | . . Reused . | . . Traps Extracted . | . . Installed . | . . Triggered . | . . Machines | -11 -10 ---------- Run | Yrd Mat Machines Disabled 2 | . 2 Max in Single Turn 1 | . 1 Machines Repaired . | . . Machines Dismantled . | . . Machines Sabotaged . | . . Overloaded Fab Kills . | . . Hacking | -11 -10 --------- Run | Yrd Mat Machines Accessed 3 | . 3 Terminals 3 | . 3 Fabricators . | . . Repair Stations . | . . Recycling Units . | . . Scanalyzers . | . . Garrison Access . | . . Total Hacks 13 | . 13 Successful 8 | . 8 Failed 4 | . 4 Catastrophic 1 | . 1 Database Lockouts 1 | . 1 Manual . | . . Terminals 13 | . 13 Fabricators . | . . Repair Stations . | . . Recycling Units . | . . Scanalyzers . | . . Garrison Access . | . . Terminal Hacks 8 | . 8 Record 7 | . 7 Maintenance Status 1 | . 1 Fabricator Hacks . | . . Repair Station Hacks . | . . Recycling Unit Hacks . | . . Scanalyzer . | . . Garrison Access Hacks . | . . Unauthorized Hacks . | . . Terminals . | . . Fabricators . | . . Repair Stations . | . . Recycling Units . | . . Scanalyzers . | . . Garrison Access . | . . Data Cores Recovered . | . . Used . | . . Hacking Detections 2 | . 2 Full Trace Events 1 | . 1 Feedback Events . | . . Feedback Blocked . | . . Robot Schematics Acquired . | . . Robots Built . | . . Authchips . | . . Time . | . . Total Robot Build Rating . | . . Part Schematics Acquired . | . . Parts Built . | . . Authchips . | . . Time . | . . Total Part Build Rating . | . . Parts Repaired . | . . Time . | . . Parts Recycled . | . . Recycled Matter . | . . Retrieved Matter . | . . Retrieved Components . | . . Parts Scanalyzed . | . . Part Schematics Acquired . | . . Parts Damaged . | . . Bothacking | -11 -10 ------------ Run | Yrd Mat Used RIF Installer . | . . Robots Hacked . | . . Non-combat . | . . Combat . | . . Robot Hacks Applied . | . . Relay Couplers Released . | . . Fabnet Peak Effective % . | . . Robots Rewired . | . . Allies Hacked . | . . Hacks Repelled . | . . Allies | -11 -10 -------- Run | Yrd Mat Total Allies . | . . Largest Group . | . . Highest-Rated Group . | . . Highest-Rated Ally . | . . Total Orders . | . . Ally Attacks . | . . Total Damage . | . . Kills . | . . Allies Corrupted . | . . Allies Melted . | . . Intel | -11 -10 ------- Run | Yrd Mat Robot Analysis Total . | . . Derelict Logs Recovered . | . . Drone Launches . | . . Drone Recoveries . | . . Exploration | -11 -10 ------------- Run | Yrd Mat Turns Passed 861 | 84 777 Spaces Moved 464 | 63 401 Core 28 | 17 11 Treads 373 | . 373 Legs . | . . Wheels 63 | 46 17 Hover . | . . Flight . | . . Fastest Speed 50 | 50 80 Average Speed 150 | 71 162 Slowest Speed 400 | 80 400 Overloaded Moves . | . . Propulsion Burnouts . | . . Robots Hopped . | . . Cave-ins Triggered . | . . Exploration Rate (%) 30 | 5 55 Regions Visited 1 Branch Regions . Pre-discovered Areas . | . . Known Exits Taken . | . . Unknown Exits Taken 1 | 1 . Scrap Searched . | . . Spaces Dug . | . . Terrain Destroyed 84 | . 84 Melee . | . . Projectile . | . . AOE 84 | . 84 Terrain Rammed . | . . Walls Destroyed . | . . Machines Disabled . | . . Actions | -11 -10 --------- Run | Yrd Mat Total 558 | 91 467 Wait . | . . Move 463 | 62 401 Hop . | . . Pick Up 27 | 10 17 Fast Attach . | . . Attach 7 | 7 . Detach . | . . Swap 15 | 3 12 Drop 8 | 3 5 Fire 38 | 6 32 Melee . | . . Ram . | . . Kick . | . . Crush . | . . Escape Stasis . | . . Rewire . | . . Trap . | . . Miscellaneous . | . . Route ------- -11/Scrapyard -10/Materials History --------- Turn | Location | Event 2 | -11/Scrapyard | Met Revision 17 38 | -11/Scrapyard | Discovered new exit (range 8) 85 | -11/Scrapyard | Entered Materials 312 | -10/Materials | Build established: Mutant 393 | -10/Materials | Central database locked down 825 | -10/Materials | Core integrity fell below 50% 851 | -10/Materials | Lost 3 parts (2n1w) 861 | -10/Materials | Core integrity fell below 20% 862 | -10/Materials | Destroyed by exploding Fusion Modulator Last Messages --------------- recycling unit. Recycling unit begins recycling process. U-05 Engineer lays Concrete. K-01 Serf cleans the Electrolysis Chamber. Grenade Launcher destroyed. The unstable cave ceiling collapses. U-05 Engineer lays Concrete. U-05 Engineer builds a Wall. U-05 Engineer lays Concrete. K-01 Serf cleans the Electrolysis Chamber. U-05 Engineer lays Concrete. U-05 Engineer builds a Wall. U-05 Engineer lays Concrete. U-05 Engineer builds a Wall. Acquired Hcp. Storage Unit. Grenade Launcher destroyed. Imp. Treads destroyed. Cooling System destroyed. Fusion Modulator explodes. G-34 Mercenary destroyed. Map ----- +----------------------------------------------------+ | + #??????????????????????? | | ########+#??????????????????????? | | #??????# #??????????????????????? | | #??????# #??????????????????????? | | #??????# #??????????????????????? | | #??????# #??????????????????????? | | #??????# #??????????????????????? | | ####+### #??????# #??????????????????????? | | #??? ?# #??????# #??????????????????????? | | #??? ## ######## #??????????????????????? | | #???? ## ##?????????????????????? | | #???? ## #?????????????????????? | | #?????+ #?????????????????????? | | #??????# #?????????????????????? | | #??????### #?????????????????????? | | #????????? ##### #### #?????????????????????? | | #????????? #???# ???# #?????????????????????? | | #######???+????# ????# #######???????????????? | | #????????+ ?????# #???????????????? | | #????????# ??????# ##### #???????????????? | | #????????#?????### ; ###?#???????????????? | | #??????????????#;;;;;;;;;# ##??????????????? | | #?????????????## ; #####??????????? | | #?????????????#; % ; o +??????????? | | #?????????????#; ; #??????????????? | | #?????????????#; @ ;#????????????????? | | #?????????????#; #????????????????? | | #?????????????#; #????????????????? | | #?????????????## #????????????????? | | #??????????????# #????????????????? | | #######??????????????# ; #????????????????? | | ?????????????????????######;;#; #????????????????? | | | | | | | | | | | | | | | | | | | | | | | | | | | | | | | | | | | | | +----------------------------------------------------+ Best States ------------- Heat Dissipation 47 Energy Generation 10 Energy Capacity 250 Matter Stores 300 Matter Capacity 300 Sight Range 16 Terrain Scan Density 10 Evasion (%) 50 Recoil Reduction 2 Item Schematics ----------------- None Robot Schematics ------------------ None Fabricated ------------ Nothing Alien Tech Used ----------------- None Achievements -------------- Storm Trooper Uninvited Guest Challenges ------------ None Game ------ Seed HeartFieldMagmablaster Manual? 0 Play Time 00:13:55 Cumulative 0.4 hours Start 2024.09.26 @ 19:53:22 End 2024.09.26 @ 20:12:21 Sessions 1 Manual Loads 0 Difficulty Rogue Special Mode None Game No. 2 Rogue 1 Adventurer 1 Explorer 0 Win Type - Total 0 Types 0/0/0/0/0/0/0/0/0 Lore% 0 Gallery% 1 Achievement% 1 Wizard Run 0 Options --------- Layout 1 ASCII 0 Keyboard 0 Movement Mouse Keybinds 0 Fullscreen 1 Font 24/Smallcaps Map View 50x35 Zoom Use 0% Tactical HUD 0 Map Filters NONE Filters NONE Steam 1 RUN: 6ddacbb0-60e6-43ab-ad18-2d1eb3a65a1f